[Event "ONJK 2024 ABC"]
[Site "Velp, Netherlands"]
[Date "2024.08.08"]
[Round "9.12"]
[White "Bosma, Jonathan"]
[Black "De Rycke, Killian"]
[Result "0-1"]
[TimeControl "90 minutes + 30 seconds"]
[WhiteElo "1668"]
[BlackElo "1751"]

1. d4 {[%clk 01:30:59]} e6 {[%clk 01:30:48]} {[%emt 00:00:13]} 2. c4 {[%clk
01:31:24]} {[%emt 00:00:04]} d5 {[%clk 01:31:12]} {[%emt 00:00:07]} 3. Nc3
{[%clk 01:31:46]} {[%emt 00:00:07]} Bb4 {[%clk 01:31:22]} {[%emt 00:00:21]} 4.
a3 {[%clk 01:31:45]} {[%emt 00:00:31]} Bxc3+ {[%clk 01:31:30]} {[%emt
00:00:22]} 5. bxc3 {[%clk 01:32:09]} {[%emt 00:00:05]} Nf6 {[%clk 01:31:34]}
{[%emt 00:00:27]} 6. Bg5 {[%clk 01:32:27]} {[%emt 00:00:11]} h6 {[%clk
01:31:28]} {[%emt 00:00:37]} 7. Bh4 {[%clk 01:32:49]} {[%emt 00:00:08]} Nbd7
{[%clk 01:28:24]} {[%emt 00:03:34]} 8. e3 {[%clk 01:30:19]} {[%emt 00:02:59]}
O-O {[%clk 01:26:36]} {[%emt 00:02:18]} 9. Nf3 {[%clk 01:30:36]} {[%emt
00:00:13]} Re8 {[%clk 01:25:01]} {[%emt 00:02:06]} 10. cxd5 {[%clk 01:28:43]}
{[%emt 00:02:23]} exd5 {[%clk 01:25:01]} {[%emt 00:00:30]} 11. c4 {[%clk
01:29:00]} {[%emt 00:00:13]} c6 {[%clk 01:25:03]} {[%emt 00:00:28]} 12. Qb3
{[%clk 01:27:44]} {[%emt 00:01:44]} Qa5+ {[%clk 01:17:10]} {[%emt 00:08:25]} 13.
Qb4 {[%clk 01:27:09]} {[%emt 00:01:04]} Qxb4+ {[%clk 01:10:23]} {[%emt
00:07:18]} 14. axb4 {[%clk 01:27:28]} {[%emt 00:00:11]} dxc4 {[%clk 01:06:29]}
{[%emt 00:04:25]} 15. Bxc4 {[%clk 01:26:25]} {[%emt 00:01:32]} Nb6 {[%clk
01:05:34]} {[%emt 00:01:25]} 16. Bxf6 {[%clk 01:21:28]} {[%emt 00:05:27]} Nxc4
{[%clk 01:05:14]} {[%emt 00:00:50]} 17. Ne5 {[%clk 01:21:16]} {[%emt 00:00:42]}
Nxe3 {[%clk 01:02:15]} {[%emt 00:03:29]} 18. fxe3 {[%clk 01:19:24]} {[%emt
00:02:21]} gxf6 {[%emt 00:00:46]} 19. Nc4 {[%clk 01:18:52]} {[%emt 00:00:33]}
b5 {[%clk 01:01:48]} {[%emt 00:01:11]} 20. Na5 {[%clk 01:19:16]} {[%emt
00:00:06]} Rxe3+ {[%clk 01:01:01]} {[%emt 00:01:18]} 21. Kd2 {[%clk 01:19:14]}
{[%emt 00:00:31]} Re6 {[%clk 00:56:35]} {[%emt 00:04:56]} 22. Rhe1 {[%clk
01:17:38]} {[%emt 00:02:05]} Bd7 {[%clk 00:55:13]} {[%emt 00:01:53]} 23. Nb7
{[%clk 01:15:24]} {[%emt 00:02:44]} Rxe1 {[%clk 00:52:25]} {[%emt 00:03:18]} 24.
Rxe1 {[%clk 01:14:58]} {[%emt 00:00:55]} Be6 {[%clk 00:48:44]} {[%emt
00:04:12]} 25. Nc5 {[%clk 01:14:09]} {[%emt 00:01:19]} Re8 {[%clk 00:48:43]}
{[%emt 00:00:31]} 26. Re3 {[%clk 01:13:21]} {[%emt 00:01:18]} Kf8 {[%clk
00:44:01]} {[%emt 00:05:12]} 27. h3 {[%clk 01:05:37]} {[%emt 00:08:14]} Ke7
{[%clk 00:38:25]} {[%emt 00:06:06]} 28. Ra3 {[%clk 01:03:57]} {[%emt 00:02:10]}
Ra8 {[%clk 00:37:41]} {[%emt 00:01:14]} 29. Ke3 {[%clk 01:02:47]} {[%emt
00:01:40]} f5 {[%clk 00:31:53]} {[%emt 00:06:18]} 30. h4 {[%clk 01:01:54]}
{[%emt 00:01:22]} Kd6 {[%clk 00:28:26]} {[%emt 00:03:57]} 31. Nxe6 {[%clk
00:52:06]} {[%emt 00:10:19]} fxe6 {[%clk 00:27:29]} {[%emt 00:01:27]} 32. Rc3
{[%clk 00:52:24]} {[%emt 00:00:12]} Rg8 {[%clk 00:23:47]} {[%emt 00:04:11]} 33.
Kf3 {[%clk 00:51:43]} {[%emt 00:01:12]} Rg4 {[%clk 00:23:10]} {[%emt 00:01:07]}
34. Ke3 {[%clk 00:49:02]} {[%emt 00:03:10]} Rxg2 {[%clk 00:22:46]} {[%emt
00:00:55]} 35. Kf3 {[%clk 00:48:47]} {[%emt 00:00:45]} Rg4 {[%clk 00:22:55]}
{[%emt 00:00:21]} 0-1

[Event "ONJK 2024 ABC"]
[Site "Velp, Netherlands"]
[Date "2024.08.08"]
[Round "9.13"]
[White "Roebers, Bregje"]
[Black "Zhao, Nick"]
[Result "1-0"]
[TimeControl "90 minutes + 30 seconds"]
[WhiteElo "1796"]
[BlackElo "1836"]

1. Nf3 {[%clk 01:30:53]} {[%emt 00:00:06]} d5 {[%clk 01:30:57]} {[%emt
00:00:04]} 2. g3 {[%clk 01:30:45]} {[%emt 00:00:37]} Nf6 {[%clk 01:30:33]}
{[%emt 00:00:54]} 3. Bg2 {[%clk 01:31:00]} {[%emt 00:00:15]} Bf5 {[%clk
01:29:12]} {[%emt 00:01:51]} 4. O-O {[%clk 01:30:50]} {[%emt 00:00:40]} Qd7
{[%clk 01:26:43]} {[%emt 00:02:59]} 5. d3 {[%clk 01:28:23]} {[%emt 00:02:56]}
Nc6 {[%clk 01:25:40]} {[%emt 00:01:34]} 6. Nbd2 {[%clk 01:26:15]} {[%emt
00:02:39]} e5 {[%clk 01:23:17]} {[%emt 00:02:53]} 7. e4 {[%clk 01:18:43]}
{[%emt 00:08:01]} dxe4 {[%clk 01:22:22]} {[%emt 00:01:25]} 8. Nxe4 {[%clk
01:17:44]} {[%emt 00:01:29]} Nxe4 {[%clk 01:21:28]} {[%emt 00:01:25]} 9. dxe4
{[%clk 01:18:05]} {[%emt 00:00:09]} Qxd1 {[%clk 01:13:27]} {[%emt 00:08:32]} 10.
Rxd1 {[%clk 01:18:23]} {[%emt 00:00:10]} Bxe4 {[%clk 01:13:31]} {[%emt
00:00:27]} 11. Nxe5 {[%clk 01:10:11]} {[%emt 00:08:41]} Bxg2 {[%clk 01:11:05]}
{[%emt 00:02:56]} 12. Kxg2 {[%clk 01:09:22]} {[%emt 00:01:19]} Nxe5 {[%clk
01:11:02]} {[%emt 00:00:34]} 13. Re1 {[%clk 01:09:16]} {[%emt 00:00:36]} O-O-O
{[%clk 01:07:27]} {[%emt 00:04:05]} 14. Rxe5 {[%clk 01:08:50]} {[%emt
00:00:55]} Rd1 {[%clk 01:02:42]} {[%emt 00:05:16]} 15. Re3 {[%clk 00:59:53]}
{[%emt 00:09:27]} Bc5 {[%clk 00:58:44]} {[%emt 00:04:27]} 16. Re2 {[%clk
00:54:06]} {[%emt 00:06:17]} Rhd8 {[%clk 00:56:39]} {[%emt 00:02:35]} 17. c3
{[%clk 00:52:27]} {[%emt 00:02:10]} a5 {[%clk 00:43:05]} {[%emt 00:14:04]} 18.
b3 {[%clk 00:41:53]} {[%emt 00:11:04]} R8d3 {[%clk 00:36:05]} {[%emt 00:07:28]}
19. Bb2 {[%clk 00:26:44]} {[%emt 00:15:40]} R3d2 {[%clk 00:33:24]} {[%emt
00:03:11]} 20. Kf3 {[%clk 00:24:37]} {[%emt 00:02:37]} Rxe2 {[%clk 00:29:00]}
{[%emt 00:04:55]} 21. Kxe2 {[%emt 00:00:54]} Rd6 {[%clk 00:28:52]} 22. c4
{[%clk 00:23:49]} {[%emt 00:01:32]} g6 {[%clk 00:27:18]} {[%emt 00:02:03]} 23.
Bc3 {[%clk 00:22:33]} {[%emt 00:01:46]} b6 {[%clk 00:27:10]} {[%emt 00:00:39]}
24. f3 {[%clk 00:19:54]} {[%emt 00:03:08]} Re6+ {[%clk 00:24:54]} {[%emt
00:02:46]} 25. Kd2 {[%clk 00:19:48]} {[%emt 00:00:37]} Kd7 {[%clk 00:22:50]}
{[%emt 00:02:34]} 26. Re1 {[%clk 00:18:20]} {[%emt 00:01:57]} h5 {[%clk
00:20:13]} {[%emt 00:03:07]} 27. h3 {[%clk 00:15:22]} {[%emt 00:03:28]} Rd6+
{[%clk 00:18:56]} {[%emt 00:01:48]} 28. Ke2 {[%clk 00:14:34]} {[%emt 00:01:17]}
Ke6 {[%clk 00:18:33]} {[%emt 00:00:53]} 29. g4 {[%clk 00:13:42]} {[%emt
00:01:22]} f5 {[%clk 00:14:00]} {[%emt 00:05:03]} 30. Rd1 {[%clk 00:12:24]}
{[%emt 00:01:47]} Kf7 {[%clk 00:08:50]} {[%emt 00:05:41]} 31. Rd5 {[%clk
00:07:42]} {[%emt 00:05:12]} Re6+ {[%clk 00:05:34]} {[%emt 00:03:45]} 32. Kd2
{[%clk 00:04:57]} {[%emt 00:03:15]} fxg4 {[%clk 00:04:23]} {[%emt 00:01:42]} 33.
fxg4 {[%clk 00:05:01]} {[%emt 00:00:26]} hxg4 {[%clk 00:04:28]} {[%emt
00:00:25]} 34. hxg4 {[%clk 00:05:03]} {[%emt 00:00:27]} Re4 {[%clk 00:04:18]}
{[%emt 00:00:40]} 35. Rd7+ {[%clk 00:03:46]} {[%emt 00:01:48]} Ke6 {[%clk
00:04:37]} {[%emt 00:00:11]} 36. Rxc7 {[%clk 00:03:51]} {[%emt 00:00:25]} Rxg4
{[%clk 00:04:55]} {[%emt 00:00:12]} 37. Rc6+ {[%clk 00:03:13]} {[%emt
00:01:09]} Kd7 {[%clk 00:04:49]} {[%emt 00:00:36]} 38. Rf6 {[%clk 00:02:54]}
{[%emt 00:00:48]} Rg2+ {[%clk 00:04:01]} {[%emt 00:01:19]} 39. Kd3 {[%clk
00:03:07]} {[%emt 00:00:17]} g5 {[%clk 00:03:58]} {[%emt 00:00:33]} 40. Rg6
{[%clk 00:02:24]} {[%emt 00:01:13]} g4 {[%clk 00:02:24]} {[%emt 00:02:04]} 41.
a3 {[%clk 00:02:33]} {[%emt 00:00:21]} g3 {[%clk 00:01:59]} {[%emt 00:00:54]}
42. b4 {[%clk 00:02:34]} {[%emt 00:00:30]} axb4 {[%clk 00:02:24]} {[%emt
00:00:05]} 43. axb4 {[%clk 00:02:56]} {[%emt 00:00:08]} Bf2 {[%clk 00:02:41]}
{[%emt 00:00:12]} 44. Be5 {[%clk 00:02:08]} {[%emt 00:01:18]} Rg1 {[%clk
00:02:43]} {[%emt 00:00:29]} 45. c5 {[%clk 00:01:52]} {[%emt 00:00:47]} bxc5
{[%clk 00:01:38]} {[%emt 00:01:35]} 46. bxc5 {[%clk 00:00:44]} {[%emt
00:01:37]} Rb1 {[%clk 00:01:00]} {[%emt 00:01:08]} 47. c6+ {[%clk 00:00:55]}
{[%emt 00:00:20]} Ke7 {[%clk 00:01:00]} {[%emt 00:00:30]} 48. c7 {[%clk
00:00:47]} {[%emt 00:00:38]} Rc1 {[%clk 00:00:43]} {[%emt 00:00:46]} 49. Rg8
{[%clk 00:00:45]} {[%emt 00:00:32]} Ke6 {[%clk 00:00:34]} {[%emt 00:00:40]} 50.
Bf4 {[%clk 00:00:41]} {[%emt 00:00:34]} Kf5 {[%clk 00:00:37]} {[%emt 00:00:28]}
1-0

[Event "ONJK 2024 ABC"]
[Site "Velp, Netherlands"]
[Date "2024.08.08"]
[Round "9.14"]
[White "De Jong, Lode"]
[Black "Georgopoulos, Mylo"]
[Result "1-0"]
[TimeControl "90 minutes + 30 seconds"]
[WhiteElo "1755"]
[BlackElo "1776"]

1. d4 {[%clk 01:30:59]} c5 {[%clk 01:30:57]} {[%emt 00:00:03]} 2. d5 {[%clk
01:31:20]} {[%emt 00:00:09]} Nf6 {[%clk 01:31:17]} {[%emt 00:00:11]} 3. c4
{[%clk 01:31:44]} {[%emt 00:00:06]} d6 {[%clk 01:31:44]} {[%emt 00:00:03]} 4.
Nc3 {[%clk 01:32:10]} {[%emt 00:00:04]} g6 {[%clk 01:32:03]} {[%emt 00:00:11]}
5. e4 {[%clk 01:32:35]} {[%emt 00:00:04]} Bg7 {[%clk 01:32:26]} {[%emt
00:00:07]} 6. h3 {[%clk 01:32:29]} {[%emt 00:00:36]} O-O {[%clk 01:31:57]}
{[%emt 00:00:59]} 7. Nf3 {[%clk 01:32:54]} {[%emt 00:00:05]} Nbd7 {[%clk
01:31:42]} {[%emt 00:00:45]} 8. Be2 {[%clk 01:32:51]} {[%emt 00:00:34]} b6
{[%clk 01:30:01]} {[%emt 00:02:11]} 9. Bf4 {[%clk 01:32:00]} {[%emt 00:01:20]}
Ba6 {[%clk 01:27:58]} {[%emt 00:02:33]} 10. Qd2 {[%clk 01:31:08]} {[%emt
00:01:22]} Qc7 {[%clk 01:26:57]} {[%emt 00:01:31]} 11. O-O-O {[%clk 01:24:28]}
{[%emt 00:07:10]} Rfb8 {[%clk 01:24:31]} {[%emt 00:02:56]} 12. Bh6 {[%clk
01:23:05]} {[%emt 00:01:53]} Bc8 {[%clk 01:18:19]} {[%emt 00:06:42]} 13. Bxg7
{[%clk 01:21:34]} {[%emt 00:02:02]} Kxg7 {[%clk 01:18:43]} {[%emt 00:00:06]} 14.
g4 {[%clk 01:18:45]} {[%emt 00:03:19]} b5 {[%clk 01:16:16]} {[%emt 00:02:56]}
15. h4 {[%clk 01:17:48]} {[%emt 00:01:26]} h5 {[%clk 01:01:27]} {[%emt
00:15:19]} 16. gxh5 {[%clk 01:15:22]} {[%emt 00:02:56]} Nxh5 {[%clk 01:01:26]}
{[%emt 00:00:31]} 17. Nxb5 {[%clk 01:13:07]} {[%emt 00:02:46]} Qb6 {[%clk
01:00:59]} {[%emt 00:00:57]} 18. Ng5 {[%clk 01:13:09]} {[%emt 00:00:27]} Ne5
{[%clk 00:53:20]} {[%emt 00:08:08]} 19. Rdg1 {[%clk 00:53:57]} {[%emt
00:19:42]} a6 {[%clk 00:45:32]} {[%emt 00:08:18]} 20. Nc3 {[%clk 00:45:52]}
{[%emt 00:08:35]} Nf4 {[%clk 00:38:30]} {[%emt 00:07:32]} 21. Nd1 {[%clk
00:43:10]} {[%emt 00:03:12]} Nxe2+ {[%clk 00:35:04]} {[%emt 00:03:56]} 22. Qxe2
{[%clk 00:43:27]} {[%emt 00:00:13]} Qb4 {[%clk 00:34:18]} {[%emt 00:01:17]} 23.
Ne3 {[%clk 00:39:53]} {[%emt 00:04:04]} Qa4 {[%clk 00:30:52]} {[%emt 00:03:55]}
24. b3 {[%clk 00:31:59]} {[%emt 00:08:24]} Qb4 {[%clk 00:27:16]} {[%emt
00:04:05]} 25. Qc2 {[%clk 00:30:23]} {[%emt 00:02:06]} a5 {[%clk 00:23:52]}
{[%emt 00:03:55]} 26. f4 {[%clk 00:30:39]} {[%emt 00:00:13]} a4 {[%clk
00:22:38]} {[%emt 00:01:45]} 27. fxe5 {[%clk 00:29:35]} {[%emt 00:01:33]} axb3
{[%clk 00:22:40]} {[%emt 00:00:29]} 28. Qxb3 {[%clk 00:28:51]} {[%emt
00:01:14]} Qa5 {[%clk 00:22:06]} {[%emt 00:01:04]} 29. Qd3 {[%clk 00:28:23]}
{[%emt 00:00:57]} Qxa2 {[%clk 00:21:59]} {[%emt 00:00:37]} 30. Nc2 {[%clk
00:27:51]} {[%emt 00:01:02]} Ba6 {[%clk 00:19:24]} {[%emt 00:03:06]} 31. Qf3
{[%clk 00:25:36]} {[%emt 00:02:45]} Rb1+ {[%clk 00:18:54]} {[%emt 00:01:00]} 32.
Kd2 {[%clk 00:25:48]} {[%emt 00:00:18]} Qa5+ {[%clk 00:19:17]} {[%emt
00:00:08]} 33. Qc3 {[%clk 00:25:45]} {[%emt 00:00:32]} Qxc3+ {[%clk 00:18:36]}
{[%emt 00:01:11]} 34. Kxc3 {[%clk 00:26:03]} {[%emt 00:00:12]} Rxg1 {[%clk
00:18:29]} {[%emt 00:00:37]} 35. Rxg1 {[%clk 00:26:27]} {[%emt 00:00:07]} dxe5
{[%clk 00:18:48]} {[%emt 00:00:10]} 36. Rf1 {[%clk 00:26:38]} {[%emt 00:00:19]}
Rf8 {[%clk 00:17:46]} {[%emt 00:01:33]} 37. Ne1 {[%clk 00:26:28]} {[%emt
00:00:40]} Bc8 {[%clk 00:17:48]} {[%emt 00:00:28]} 38. Nd3 {[%clk 00:26:02]}
{[%emt 00:00:56]} f6 {[%clk 00:17:44]} {[%emt 00:00:33]} 39. Nf3 {[%clk
00:25:49]} {[%emt 00:00:43]} f5 {[%clk 00:17:33]} {[%emt 00:00:42]} 40. Nfxe5
{[%clk 00:25:39]} {[%emt 00:00:40]} e6 {[%clk 00:16:59]} {[%emt 00:01:04]} 41.
Nxc5 {[%clk 00:25:11]} {[%emt 00:00:58]} exd5 {[%clk 00:17:20]} {[%emt
00:00:09]} 42. exd5 {[%clk 00:25:01]} {[%emt 00:00:40]} f4 {[%clk 00:17:32]}
{[%emt 00:00:18]} 43. d6 {[%clk 00:23:20]} {[%emt 00:02:12]} f3 {[%clk
00:15:59]} {[%emt 00:02:03]} 44. d7 {[%clk 00:23:19]} {[%emt 00:00:31]} Bxd7
{[%clk 00:16:20]} {[%emt 00:00:09]} 45. Ncxd7 {[%clk 00:23:28]} {[%emt
00:00:21]} f2 {[%clk 00:16:33]} {[%emt 00:00:17]} 46. Nxf8 {[%emt 00:00:27]}
1-0

[Event "ONJK 2024 ABC"]
[Site "Velp, Netherlands"]
[Date "2024.08.08"]
[Round "9.15"]
[White "De Wit, Evan"]
[Black "Meert, Maarin"]
[Result "1/2-1/2"]
[TimeControl "90 minutes + 30 seconds"]
[WhiteElo "1782"]
[BlackElo "1811"]

1. d4 {[%clk 01:30:59]} d5 {[%clk 01:30:55]} {[%emt 00:00:06]} 2. c4 {[%clk
01:30:43]} {[%emt 00:00:46]} c6 {[%clk 01:31:22]} {[%emt 00:00:03]} 3. Nf3
{[%clk 01:31:01]} {[%emt 00:00:11]} Nf6 {[%clk 01:31:46]} {[%emt 00:00:07]} 4.
e3 {[%clk 01:31:25]} {[%emt 00:00:06]} e6 {[%clk 01:29:44]} {[%emt 00:02:32]} 5.
Bd3 {[%clk 01:31:31]} {[%emt 00:00:25]} Bd6 {[%clk 01:29:49]} {[%emt 00:00:25]}
6. O-O {[%clk 01:31:43]} {[%emt 00:00:17]} O-O {[%clk 01:30:05]} {[%emt
00:00:14]} 7. Nbd2 {[%clk 01:32:03]} {[%emt 00:00:10]} Nbd7 {[%clk 01:29:31]}
{[%emt 00:01:05]} 8. b3 {[%clk 01:32:24]} {[%emt 00:00:09]} e5 {[%clk
01:29:24]} {[%emt 00:00:37]} 9. cxd5 {[%clk 01:31:11]} {[%emt 00:01:43]} Nxd5
{[%clk 01:24:57]} {[%emt 00:04:57]} 10. Bb2 {[%clk 01:29:19]} {[%emt 00:02:22]}
exd4 {[%clk 01:24:37]} {[%emt 00:00:50]} 11. Bxd4 {[%clk 01:28:16]} {[%emt
00:01:33]} Re8 {[%clk 01:22:18]} {[%emt 00:02:49]} 12. Nc4 {[%clk 01:24:47]}
{[%emt 00:03:59]} Bc7 {[%clk 01:21:24]} {[%emt 00:01:24]} 13. Rc1 {[%clk
01:23:54]} {[%emt 00:01:22]} N7f6 {[%clk 01:12:01]} {[%emt 00:09:51]} 14. h3
{[%clk 01:22:34]} {[%emt 00:01:52]} Ne4 {[%clk 01:02:29]} {[%emt 00:10:03]} 15.
a3 {[%clk 01:17:48]} {[%emt 00:05:16]} h6 {[%clk 00:59:45]} {[%emt 00:03:13]}
16. b4 {[%clk 01:16:54]} {[%emt 00:01:25]} Ng5 {[%clk 00:56:55]} {[%emt
00:03:20]} 17. Nxg5 {[%clk 01:13:12]} {[%emt 00:04:12]} Qxg5 {[%clk 00:57:05]}
{[%emt 00:00:20]} 18. Qf3 {[%clk 01:13:26]} {[%emt 00:00:14]} h5 {[%clk
00:53:06]} {[%emt 00:04:30]} 19. Nd2 {[%clk 01:06:25]} {[%emt 00:07:31]} Qh4
{[%clk 00:50:28]} {[%emt 00:03:09]} 20. Bf5 {[%clk 01:00:44]} {[%emt 00:06:09]}
Bxf5 {[%clk 00:33:41]} {[%emt 00:17:18]} 21. Qxf5 {[%clk 01:01:01]} {[%emt
00:00:13]} g6 {[%clk 00:33:43]} {[%emt 00:00:28]} 22. Qc2 {[%clk 00:59:00]}
{[%emt 00:02:30]} Bb6 {[%clk 00:30:24]} {[%emt 00:03:50]} 23. Bxb6 {[%clk
00:57:47]} {[%emt 00:01:43]} Nxb6 {[%clk 00:29:39]} {[%emt 00:01:15]} 24. Nf3
{[%clk 00:57:40]} {[%emt 00:00:36]} Qe4 {[%clk 00:27:26]} {[%emt 00:02:43]} 25.
Qe2 {[%clk 00:55:04]} {[%emt 00:03:05]} Rad8 {[%clk 00:25:23]} {[%emt
00:02:35]} 26. Rfd1 {[%clk 00:54:05]} {[%emt 00:01:28]} Nd5 {[%clk 00:23:46]}
{[%emt 00:02:07]} 27. Qb2 {[%clk 00:53:15]} {[%emt 00:01:20]} Rd7 {[%clk
00:21:57]} {[%emt 00:02:19]} 28. Rd4 {[%clk 00:52:49]} {[%emt 00:00:56]} Qe7
{[%clk 00:20:14]} {[%emt 00:02:13]} 29. Rcd1 {[%clk 00:52:55]} {[%emt
00:00:24]} Red8 {[%clk 00:20:37]} {[%emt 00:00:08]} 30. Qd2 {[%clk 00:52:30]}
{[%emt 00:00:54]} Nb6 {[%clk 00:20:26]} {[%emt 00:00:41]} 31. Qc2 {[%clk
00:49:33]} {[%emt 00:03:27]} Rxd4 {[%clk 00:19:23]} {[%emt 00:01:33]} 32. Nxd4
{[%clk 00:47:32]} {[%emt 00:02:31]} Nd5 {[%clk 00:19:03]} {[%emt 00:00:51]} 33.
Qc4 {[%clk 00:46:48]} {[%emt 00:01:14]} Nb6 {[%clk 00:18:12]} {[%emt 00:01:21]}
34. Qc2 {[%clk 00:46:36]} {[%emt 00:00:39]} 1/2-1/2

[Event "ONJK 2024 ABC"]
[Site "Velp, Netherlands"]
[Date "2024.08.08"]
[Round "9.16"]
[White "Koorevaar, Sarah-Joy"]
[Black "Vogels, Mathijs"]
[Result "1-0"]
[TimeControl "90 minutes + 30 seconds"]
[WhiteElo "1531"]
[BlackElo "1732"]

1. d4 {[%clk 01:30:59]} d5 {[%clk 01:30:55]} {[%emt 00:00:05]} 2. c4 {[%clk
01:31:26]} {[%emt 00:00:03]} c6 {[%clk 01:31:21]} {[%emt 00:00:04]} 3. Nf3
{[%clk 01:31:52]} {[%emt 00:00:05]} e6 {[%clk 01:31:45]} {[%emt 00:00:06]} 4.
g3 {[%clk 01:32:18]} {[%emt 00:00:03]} Nf6 {[%clk 01:31:57]} {[%emt 00:00:19]}
5. Bg2 {[%clk 01:32:43]} {[%emt 00:00:05]} Bb4+ {[%clk 01:31:53]} {[%emt
00:00:35]} 6. Bd2 {[%clk 01:33:06]} {[%emt 00:00:08]} Bxd2+ {[%clk 01:31:36]}
{[%emt 00:00:46]} 7. Nbxd2 {[%clk 01:33:30]} {[%emt 00:00:06]} O-O {[%clk
01:31:58]} {[%emt 00:00:08]} 8. O-O {[%clk 01:33:57]} {[%emt 00:00:03]} Re8
{[%clk 01:31:16]} {[%emt 00:01:12]} 9. Qc2 {[%clk 01:34:22]} {[%emt 00:00:05]}
Nbd7 {[%clk 01:29:45]} {[%emt 00:02:00]} 10. Rac1 {[%clk 01:33:28]} {[%emt
00:01:25]} e5 {[%clk 01:28:24]} {[%emt 00:01:51]} 11. dxe5 {[%clk 01:30:11]}
{[%emt 00:03:47]} Nxe5 {[%clk 01:28:45]} {[%emt 00:00:09]} 12. Rfd1 {[%clk
01:27:02]} {[%emt 00:03:39]} Qe7 {[%clk 01:23:45]} {[%emt 00:05:30]} 13. cxd5
{[%clk 01:21:08]} {[%emt 00:06:24]} Nxd5 {[%clk 01:23:44]} {[%emt 00:00:31]} 14.
Nb3 {[%clk 01:14:31]} {[%emt 00:07:06]} Nxf3+ {[%clk 01:10:59]} {[%emt
00:13:15]} 15. Bxf3 {[%clk 01:14:39]} {[%emt 00:00:22]} Be6 {[%clk 01:08:29]}
{[%emt 00:03:01]} 16. a3 {[%clk 01:05:57]} {[%emt 00:09:12]} Rad8 {[%clk
00:55:04]} {[%emt 00:13:53]} 17. Nc5 {[%clk 01:03:36]} {[%emt 00:02:51]} Nb6
{[%clk 00:52:52]} {[%emt 00:02:41]} 18. e3 {[%clk 00:49:45]} {[%emt 00:14:22]}
Bc4 {[%clk 00:46:53]} {[%emt 00:06:26]} 19. Na4 {[%clk 00:46:45]} {[%emt
00:03:34]} Nxa4 {[%clk 00:46:49]} {[%emt 00:00:34]} 20. Qxa4 {[%clk 00:47:08]}
{[%emt 00:00:07]} b5 {[%clk 00:42:22]} {[%emt 00:04:57]} 21. Qa6 {[%clk
00:39:03]} {[%emt 00:08:34]} Rb8 {[%clk 00:38:19]} {[%emt 00:04:34]} 22. Qxc6
{[%clk 00:37:10]} {[%emt 00:02:22]} Rb6 {[%clk 00:38:33]} {[%emt 00:00:17]} 23.
Qd7 {[%clk 00:37:31]} {[%emt 00:00:07]} Qxd7 {[%clk 00:32:35]} {[%emt
00:06:28]} 24. Rxd7 {[%clk 00:37:56]} {[%emt 00:00:05]} a5 {[%clk 00:29:16]}
{[%emt 00:03:50]} 25. Ra7 {[%clk 00:35:32]} {[%emt 00:02:54]} a4 {[%clk
00:29:18]} {[%emt 00:00:27]} 26. Rd1 {[%clk 00:30:27]} {[%emt 00:05:35]} Rbb8
{[%clk 00:18:05]} {[%emt 00:11:43]} 27. Rdd7 {[%clk 00:29:39]} {[%emt
00:01:18]} g6 {[%clk 00:17:30]} {[%emt 00:01:06]} 28. Rab7 {[%clk 00:28:28]}
{[%emt 00:01:40]} Rbc8 {[%clk 00:16:28]} {[%emt 00:01:33]} 29. Bd5 {[%clk
00:25:56]} {[%emt 00:03:01]} Rf8 {[%clk 00:14:32]} {[%emt 00:02:27]} 30. Bxc4
{[%clk 00:23:31]} {[%emt 00:02:55]} bxc4 {[%clk 00:14:54]} {[%emt 00:00:08]} 31.
Ra7 {[%clk 00:23:25]} {[%emt 00:00:36]} Rb8 {[%clk 00:14:19]} {[%emt 00:01:06]}
32. Rxa4 {[%clk 00:23:10]} {[%emt 00:00:45]} Rxb2 {[%clk 00:14:45]} {[%emt
00:00:04]} 33. Rxc4 {[%clk 00:23:35]} {[%emt 00:00:05]} Ra8 {[%clk 00:15:01]}
{[%emt 00:00:13]} 34. Rcc7 {[%clk 00:23:47]} {[%emt 00:00:19]} Rf8 {[%clk
00:14:40]} {[%emt 00:00:50]} 35. Ra7 {[%clk 00:24:10]} {[%emt 00:00:07]} Ra2
{[%clk 00:15:03]} {[%emt 00:00:08]} 36. a4 {[%clk 00:23:51]} {[%emt 00:00:50]}
Rc2 {[%clk 00:14:32]} {[%emt 00:01:00]} 37. a5 {[%clk 00:21:54]} {[%emt
00:02:27]} Rcc8 {[%clk 00:14:55]} {[%emt 00:00:07]} 38. Kg2 {[%clk 00:20:56]}
{[%emt 00:01:27]} Kg7 {[%clk 00:15:09]} {[%emt 00:00:17]} 39. Kf3 {[%clk
00:20:38]} {[%emt 00:00:48]} Kf6 {[%clk 00:15:33]} {[%emt 00:00:06]} 40. Kf4
{[%clk 00:19:07]} {[%emt 00:02:00]} g5+ {[%clk 00:14:40]} {[%emt 00:01:23]} 41.
Ke4 {[%clk 00:17:22]} {[%emt 00:02:15]} Rfe8+ {[%clk 00:13:04]} {[%emt
00:02:06]} 42. Kd4 {[%clk 00:17:08]} {[%emt 00:00:44]} Red8 {[%clk 00:12:56]}
{[%emt 00:00:39]} 43. Rxd8 {[%clk 00:16:24]} {[%emt 00:01:14]} Rxd8+ {[%clk
00:13:19]} {[%emt 00:00:08]} 44. Kc5 {[%clk 00:13:21]} {[%emt 00:03:32]} Ke6
{[%clk 00:13:33]} {[%emt 00:00:16]} 45. Kb5 {[%clk 00:13:10]} {[%emt 00:00:40]}
Rd5+ {[%clk 00:13:42]} {[%emt 00:00:22]} 46. Ka4 {[%clk 00:11:57]} {[%emt
00:01:41]} Rd2 {[%clk 00:13:42]} {[%emt 00:00:31]} 47. Rb7 {[%clk 00:11:14]}
{[%emt 00:01:13]} Rxf2 {[%clk 00:13:54]} {[%emt 00:00:19]} 48. Kb5 {[%clk
00:11:16]} {[%emt 00:00:28]} Rb2+ {[%clk 00:14:07]} {[%emt 00:00:17]} 49. Ka6
{[%clk 00:11:35]} {[%emt 00:00:09]} Ra2 {[%clk 00:14:06]} {[%emt 00:00:32]} 50.
Rb5 {[%clk 00:11:48]} {[%emt 00:00:16]} f6 {[%clk 00:14:06]} {[%emt 00:00:30]}
51. Kb6 {[%clk 00:10:33]} {[%emt 00:01:44]} Kd6 {[%clk 00:13:30]} {[%emt
00:01:07]} 52. a6 {[%clk 00:10:17]} {[%emt 00:00:47]} Rc2 {[%clk 00:13:29]}
{[%emt 00:00:31]} 53. a7 {[%clk 00:09:31]} {[%emt 00:01:16]} Rc6+ {[%clk
00:13:39]} {[%emt 00:00:19]} 54. Kb7 {[%clk 00:09:35]} {[%emt 00:00:26]} Rc7+
{[%clk 00:13:41]} {[%emt 00:00:28]} 55. Kb8 {[%clk 00:09:59]} {[%emt 00:00:06]}
Kd7 {[%clk 00:13:38]} {[%emt 00:00:34]} 56. Rd5+ {[%clk 00:10:15]} {[%emt
00:00:13]} Kc6 {[%clk 00:13:55]} {[%emt 00:00:14]} 57. a8=Q+ {[%clk 00:10:37]}
{[%emt 00:00:08]} 1-0